[Event "Titled Tuesday Blitz February 01 A 2022"]
[White "Terry, Renato"]
[Black "Grischuk, Alexander"]
[WhiteFideId "3803457"]
[BlackFideId "4126025"]
[WhiteElo "2742"]
[BlackElo "3042"]
[Result "1/2-1/2"]
[Round "04"]
[TimeControl "180+1"]
[Date "2022.02.01"]
[WhiteClock "0:00:05"]
[BlackClock "0:00:56"]

1. d4 {[%clk 0:03:00]}  Nf6 {[%clk 0:02:59]} 2. Bg5 {[%clk 0:03:00]}  d5 {[%clk 0:02:57]} 3. Bxf6 {[%clk 0:02:52]}  exf6 {[%clk 0:02:57]} 4. e3 {[%clk 0:02:52]}  c5 {[%clk 0:02:58]} 5. c3 {[%clk 0:02:51]}  Nc6 {[%clk 0:02:57]} 6. Nf3 {[%clk 0:02:48]}  Be6 {[%clk 0:02:54]} 7. Nbd2 {[%clk 0:02:48]}  Bd6 {[%clk 0:02:45]} 8. dxc5 {[%clk 0:02:48]}  Bxc5 {[%clk 0:02:46]} 9. Be2 {[%clk 0:02:47]}  O-O {[%clk 0:02:46]} 10. O-O {[%clk 0:02:47]}  f5 {[%clk 0:02:46]} 11. Nb3 {[%clk 0:02:47]}  Bb6 {[%clk 0:02:46]} 12. Nbd4 {[%clk 0:02:46]}  Qf6 {[%clk 0:02:46]} 13. Qd2 {[%clk 0:02:39]}  Rad8 {[%clk 0:02:46]} 14. Rad1 {[%clk 0:02:36]}  Bc8 {[%clk 0:02:44]} 15. Rfe1 {[%clk 0:02:36]}  g5 {[%clk 0:02:43]} 16. g3 {[%clk 0:02:33]}  Ne7 {[%clk 0:02:43]} 17. Bd3 {[%clk 0:01:54]}  Ng6 {[%clk 0:02:41]} 18. Qc2 {[%clk 0:01:54]}  f4 {[%clk 0:02:36]} 19. exf4 {[%clk 0:01:54]}  gxf4 {[%clk 0:02:37]} 20. Bf5 {[%clk 0:01:53]}  fxg3 {[%clk 0:02:08]} 21. hxg3 {[%clk 0:01:52]}  Rfe8 {[%clk 0:02:08]} 22. Bxc8 {[%clk 0:01:49]}  Rxc8 {[%clk 0:02:09]} 23. Qf5 {[%clk 0:01:45]}  Rxe1+ {[%clk 0:02:06]} 24. Rxe1 {[%clk 0:01:45]}  Qxf5 {[%clk 0:02:03]} 25. Nxf5 {[%clk 0:01:45]}  Bc5 {[%clk 0:01:54]} 26. Ng5 {[%clk 0:01:30]}  Bf8 {[%clk 0:01:50]} 27. Kg2 {[%clk 0:01:19]}  b5 {[%clk 0:01:50]} 28. Rd1 {[%clk 0:01:17]}  Rc5 {[%clk 0:01:45]} 29. Nf3 {[%clk 0:01:14]}  a5 {[%clk 0:01:42]} 30. Ne3 {[%clk 0:01:09]}  Ne7 {[%clk 0:01:40]} 31. Ne5 {[%clk 0:01:09]}  b4 {[%clk 0:01:37]} 32. Nd7 {[%clk 0:00:51]}  Rc6 {[%clk 0:01:28]} 33. Nxf8 {[%clk 0:00:45]}  Kxf8 {[%clk 0:01:27]} 34. cxb4 {[%clk 0:00:30]}  axb4 {[%clk 0:01:28]} 35. Nxd5 {[%clk 0:00:30]}  Nxd5 {[%clk 0:01:21]} 36. Rxd5 {[%clk 0:00:31]}  Rc2 {[%clk 0:01:22]} 37. b3 {[%clk 0:00:30]}  Rxa2 {[%clk 0:01:22]} 38. Rb5 {[%clk 0:00:31]}  Rb2 {[%clk 0:01:22]} 39. Rxb4 {[%clk 0:00:31]}  h5 {[%clk 0:01:20]} 40. Rb6 {[%clk 0:00:28]}  Kg7 {[%clk 0:01:20]} 41. Kf3 {[%clk 0:00:27]}  f6 {[%clk 0:01:18]} 42. Ke3 {[%clk 0:00:27]}  Kg6 {[%clk 0:01:18]} 43. f3 {[%clk 0:00:24]}  Kg5 {[%clk 0:01:15]} 44. Rb5+ {[%clk 0:00:24]}  f5 {[%clk 0:01:15]} 45. Rb8 {[%clk 0:00:25]}  Rb1 {[%clk 0:01:10]} 46. Rg8+ {[%clk 0:00:22]}  Kf6 {[%clk 0:01:10]} 47. Rb8 {[%clk 0:00:22]}  Kg5 {[%clk 0:01:09]} 48. Rb6 {[%clk 0:00:05]}  Re1+ {[%clk 0:01:03]} 49. Kf2 {[%clk 0:00:05]}  Rb1 {[%clk 0:01:03]} 50. Rb8 {[%clk 0:00:05]}  Rb2+ {[%clk 0:00:55]} 51. Ke3 {[%clk 0:00:05]}  Rb1 {[%clk 0:00:56]} 1/2-1/2


[Site "https://www.chess.com"]

[Event "Titled Tuesday Blitz February 01 A 2022"]
[White "Zhigalko, Sergei"]
[Black "Papp, Levente"]
[WhiteFideId "13502956"]
[BlackFideId "751243"]
[WhiteElo "2662"]
[BlackElo "2308"]
[Result "1-0"]
[Round "04"]
[TimeControl "180+1"]
[Date "2022.02.01"]
[WhiteClock "0:00:07"]
[BlackClock "0:00:03"]

1. e4 {[%clk 0:03:00]}  e6 {[%clk 0:03:00]} 2. d4 {[%clk 0:03:00]}  d5 {[%clk 0:03:00]} 3. e5 {[%clk 0:03:00]}  c5 {[%clk 0:02:59]} 4. c3 {[%clk 0:03:01]}  Nc6 {[%clk 0:03:00]} 5. Nf3 {[%clk 0:03:01]}  Qb6 {[%clk 0:03:00]} 6. a3 {[%clk 0:03:01]}  Nh6 {[%clk 0:03:00]} 7. b4 {[%clk 0:03:01]}  cxd4 {[%clk 0:03:00]} 8. cxd4 {[%clk 0:03:02]}  Nf5 {[%clk 0:03:01]} 9. Be3 {[%clk 0:03:02]}  Nxe3 {[%clk 0:02:57]} 10. fxe3 {[%clk 0:03:03]}  Bd7 {[%clk 0:02:57]} 11. Bd3 {[%clk 0:03:03]}  f6 {[%clk 0:02:53]} 12. O-O {[%clk 0:02:51]}  Be7 {[%clk 0:02:41]} 13. exf6 {[%clk 0:02:45]}  Bxf6 {[%clk 0:02:40]} 14. Nc3 {[%clk 0:02:45]}  O-O {[%clk 0:02:24]} 15. Na4 {[%clk 0:02:45]}  Qd8 {[%clk 0:02:23]} 16. Nc5 {[%clk 0:02:45]}  Qe7 {[%clk 0:02:07]} 17. Rc1 {[%clk 0:02:35]}  Be8 {[%clk 0:01:56]} 18. Kh1 {[%clk 0:02:18]}  Bh5 {[%clk 0:01:45]} 19. Qc2 {[%clk 0:02:13]}  g6 {[%clk 0:01:25]} 20. Nxb7 {[%clk 0:01:19]}  Nxb4 {[%clk 0:01:25]} 21. axb4 {[%clk 0:01:19]}  Qxb7 {[%clk 0:01:25]} 22. Qc6 {[%clk 0:01:18]}  Qe7 {[%clk 0:00:57]} 23. Ne5 {[%clk 0:01:06]}  Bxe5 {[%clk 0:00:35]} 24. dxe5 {[%clk 0:01:06]}  Bg4 {[%clk 0:00:35]} 25. Rf6 {[%clk 0:01:01]}  Rab8 {[%clk 0:00:31]} 26. h3 {[%clk 0:00:55]}  Bf5 {[%clk 0:00:11]} 27. Bxf5 {[%clk 0:00:54]}  exf5 {[%clk 0:00:11]} 28. Qxd5+ {[%clk 0:00:51]}  Kh8 {[%clk 0:00:12]} 29. Rxf8+ {[%clk 0:00:44]}  Rxf8 {[%clk 0:00:13]} 30. e6 {[%clk 0:00:37]}  Rf6 {[%clk 0:00:13]} 31. Rc6 {[%clk 0:00:26]}  Qxb4 {[%clk 0:00:06]} 32. Qe5 {[%clk 0:00:16]}  Kg7 {[%clk 0:00:03]} 33. Rc7+ {[%clk 0:00:11]}  Kh6 {[%clk 0:00:03]} 34. Qxf6 {[%clk 0:00:08]}  Qd6 {[%clk 0:00:03]} 35. Qh4# {[%clk 0:00:07]} 1-0


[Site "https://www.chess.com"]

[Event "Titled Tuesday Blitz February 01 A 2022"]
[White "Abdrlauf, Elham"]
[Black "Vasquez Schroeder, Rodrigo"]
[WhiteFideId "1533533"]
[BlackFideId "3400042"]
[WhiteElo "2334"]
[BlackElo "2568"]
[Result "0-1"]
[Round "05"]
[TimeControl "180+1"]
[Date "2022.02.01"]
[WhiteClock "0:00:04"]
[BlackClock "0:01:00"]

1. e4 {[%clk 0:03:00]}  c5 {[%clk 0:02:59]} 2. Nf3 {[%clk 0:03:00]}  d6 {[%clk 0:02:59]} 3. d4 {[%clk 0:03:00]}  cxd4 {[%clk 0:02:59]} 4. Nxd4 {[%clk 0:03:01]}  Nf6 {[%clk 0:02:59]} 5. Nc3 {[%clk 0:03:02]}  a6 {[%clk 0:02:59]} 6. Bc4 {[%clk 0:03:03]}  e6 {[%clk 0:02:59]} 7. Bb3 {[%clk 0:03:03]}  b5 {[%clk 0:02:59]} 8. f4 {[%clk 0:03:03]}  Bb7 {[%clk 0:02:58]} 9. e5 {[%clk 0:03:03]}  dxe5 {[%clk 0:02:57]} 10. fxe5 {[%clk 0:03:04]}  Nfd7 {[%clk 0:02:53]} 11. Qh5 {[%clk 0:03:02]}  g6 {[%clk 0:02:48]} 12. Qh3 {[%clk 0:03:02]}  Nc5 {[%clk 0:02:43]} 13. Be3 {[%clk 0:03:01]}  Nbd7 {[%clk 0:02:39]} 14. O-O {[%clk 0:02:50]}  Qb6 {[%clk 0:02:30]} 15. Rxf7 {[%clk 0:02:33]}  Kxf7 {[%clk 0:02:13]} 16. Nxe6 {[%clk 0:02:33]}  Ke8 {[%clk 0:02:00]} 17. Rd1 {[%clk 0:02:05]}  Qc6 {[%clk 0:01:47]} 18. Bd5 {[%clk 0:01:46]}  Qc8 {[%clk 0:01:45]} 19. Ng5 {[%clk 0:01:05]}  Nxe5 {[%clk 0:01:32]} 20. Qg3 {[%clk 0:01:03]}  Ncd7 {[%clk 0:01:20]} 21. Nce4 {[%clk 0:00:37]}  Be7 {[%clk 0:01:09]} 22. Ne6 {[%clk 0:00:20]}  Bxd5 {[%clk 0:01:02]} 23. Rxd5 {[%clk 0:00:20]}  Qxc2 {[%clk 0:01:02]} 24. h3 {[%clk 0:00:04]}  Qxe4 {[%clk 0:01:00]} 0-1


[Site "https://www.chess.com"]

[Event "Titled Tuesday Blitz February 01 A 2022"]
[White "Alonso Rosell, Alvar"]
[Black "Sasikiran, Krishnan"]
[WhiteFideId "2270544"]
[BlackFideId "5004985"]
[WhiteElo "2518"]
[BlackElo "2572"]
[Result "1-0"]
[Round "05"]
[TimeControl "180+1"]
[Date "2022.02.01"]
[WhiteClock "0:00:20"]
[BlackClock "0:00:27"]

1. d4 {[%clk 0:03:00]}  Nf6 {[%clk 0:02:57]} 2. Bf4 {[%clk 0:03:00]}  g6 {[%clk 0:02:55]} 3. Nc3 {[%clk 0:03:00]}  d5 {[%clk 0:02:54]} 4. e3 {[%clk 0:02:59]}  Nh5 {[%clk 0:02:53]} 5. Bg5 {[%clk 0:02:48]}  f6 {[%clk 0:02:52]} 6. Bh4 {[%clk 0:02:43]}  c6 {[%clk 0:02:47]} 7. h3 {[%clk 0:02:24]}  Ng7 {[%clk 0:02:44]} 8. Bg3 {[%clk 0:02:23]}  Nf5 {[%clk 0:02:44]} 9. Bh2 {[%clk 0:02:23]}  Bg7 {[%clk 0:02:44]} 10. Nf3 {[%clk 0:02:22]}  Nd6 {[%clk 0:02:23]} 11. Bd3 {[%clk 0:02:18]}  O-O {[%clk 0:02:16]} 12. e4 {[%clk 0:02:16]}  dxe4 {[%clk 0:02:14]} 13. Nxe4 {[%clk 0:02:17]}  Nxe4 {[%clk 0:02:12]} 14. Bxe4 {[%clk 0:02:17]}  Bf5 {[%clk 0:02:07]} 15. Bxf5 {[%clk 0:02:15]}  Qa5+ {[%clk 0:02:06]} 16. Qd2 {[%clk 0:02:13]}  Qxf5 {[%clk 0:02:06]} 17. O-O {[%clk 0:02:12]}  Nd7 {[%clk 0:02:05]} 18. Rfe1 {[%clk 0:02:09]}  Rae8 {[%clk 0:01:58]} 19. Re2 {[%clk 0:02:08]}  Nb6 {[%clk 0:01:56]} 20. Rae1 {[%clk 0:02:06]}  Qd7 {[%clk 0:01:55]} 21. Re6 {[%clk 0:01:59]}  Nc8 {[%clk 0:01:33]} 22. Qe2 {[%clk 0:01:48]}  Bh6 {[%clk 0:01:29]} 23. h4 {[%clk 0:01:43]}  Qd5 {[%clk 0:01:23]} 24. c4 {[%clk 0:01:42]}  Qf5 {[%clk 0:01:23]} 25. d5 {[%clk 0:01:30]}  Bf4 {[%clk 0:01:14]} 26. Bxf4 {[%clk 0:01:08]}  Qxf4 {[%clk 0:01:14]} 27. dxc6 {[%clk 0:01:08]}  bxc6 {[%clk 0:01:13]} 28. c5 {[%clk 0:01:08]}  Rd8 {[%clk 0:01:07]} 29. Rxc6 {[%clk 0:01:05]}  e5 {[%clk 0:01:07]} 30. Rc7 {[%clk 0:00:55]}  e4 {[%clk 0:01:04]} 31. Qc4+ {[%clk 0:00:52]}  Kh8 {[%clk 0:01:02]} 32. Rb7 {[%clk 0:00:41]}  Rde8 {[%clk 0:00:54]} 33. Re3 {[%clk 0:00:35]}  g5 {[%clk 0:00:33]} 34. hxg5 {[%clk 0:00:29]}  fxg5 {[%clk 0:00:33]} 35. Qd4+ {[%clk 0:00:26]}  Rf6 {[%clk 0:00:33]} 36. Rf7 {[%clk 0:00:20]}  Re6 {[%clk 0:00:27]} 37. Qd8+ {[%clk 0:00:20]} 1-0


[Site "https://www.chess.com"]

[Event "Titled Tuesday Blitz February 01 A 2022"]
[White "Aravindh, Chithambaram VR."]
[Black "Weetik, Vjacheslav"]
[WhiteFideId "5072786"]
[BlackFideId "4153472"]
[WhiteElo "2561"]
[BlackElo "2469"]
[Result "1-0"]
[Round "05"]
[TimeControl "180+1"]
[Date "2022.02.01"]
[WhiteClock "0:00:12"]
[BlackClock "0:00:03"]

1. b3 {[%clk 0:03:00]}  d5 {[%clk 0:02:55]} 2. Bb2 {[%clk 0:03:00]}  Bg4 {[%clk 0:02:55]} 3. f3 {[%clk 0:03:00]}  Bh5 {[%clk 0:02:55]} 4. e3 {[%clk 0:03:00]}  Nd7 {[%clk 0:02:48]} 5. d4 {[%clk 0:02:56]}  e6 {[%clk 0:02:41]} 6. Nc3 {[%clk 0:02:45]}  f5 {[%clk 0:02:33]} 7. Qd2 {[%clk 0:02:35]}  Ngf6 {[%clk 0:02:33]} 8. Nge2 {[%clk 0:02:34]}  Bd6 {[%clk 0:02:28]} 9. Nf4 {[%clk 0:02:33]}  Bf7 {[%clk 0:02:27]} 10. Nb5 {[%clk 0:02:28]}  Be7 {[%clk 0:02:15]} 11. c4 {[%clk 0:02:28]}  c6 {[%clk 0:02:10]} 12. Nc3 {[%clk 0:02:28]}  O-O {[%clk 0:02:06]} 13. Be2 {[%clk 0:02:26]}  Bd6 {[%clk 0:01:52]} 14. O-O-O {[%clk 0:02:24]}  Bb4 {[%clk 0:01:15]} 15. Qc2 {[%clk 0:02:24]}  Qa5 {[%clk 0:01:12]} 16. Kb1 {[%clk 0:02:23]}  b5 {[%clk 0:01:06]} 17. c5 {[%clk 0:02:16]}  e5 {[%clk 0:00:44]} 18. dxe5 {[%clk 0:02:09]}  Nxe5 {[%clk 0:00:44]} 19. Nxb5 {[%clk 0:01:43]}  Ng6 {[%clk 0:00:18]} 20. Nd4 {[%clk 0:01:29]}  Qxc5 {[%clk 0:00:16]} 21. Qxc5 {[%clk 0:01:13]}  Bxc5 {[%clk 0:00:16]} 22. Nfe6 {[%clk 0:01:12]}  Bxe6 {[%clk 0:00:14]} 23. Nxe6 {[%clk 0:01:13]}  Bxe3 {[%clk 0:00:14]} 24. Nxf8 {[%clk 0:01:13]}  Rxf8 {[%clk 0:00:15]} 25. Bd3 {[%clk 0:01:09]}  Nf4 {[%clk 0:00:13]} 26. Bxf5 {[%clk 0:01:07]}  Nxg2 {[%clk 0:00:14]} 27. Be5 {[%clk 0:00:49]}  Nh4 {[%clk 0:00:13]} 28. Be6+ {[%clk 0:00:49]}  Kh8 {[%clk 0:00:14]} 29. Rd3 {[%clk 0:00:37]}  Bb6 {[%clk 0:00:12]} 30. Rc1 {[%clk 0:00:35]}  c5 {[%clk 0:00:04]} 31. Bxf6 {[%clk 0:00:24]}  Rxf6 {[%clk 0:00:04]} 32. Bxd5 {[%clk 0:00:25]}  Ng2 {[%clk 0:00:04]} 33. Be4 {[%clk 0:00:23]}  Nf4 {[%clk 0:00:03]} 34. Rd7 {[%clk 0:00:20]}  h5 {[%clk 0:00:04]} 35. Rg1 {[%clk 0:00:18]}  g6 {[%clk 0:00:04]} 36. Rgd1 {[%clk 0:00:17]}  Ne6 {[%clk 0:00:02]} 37. R1d6 {[%clk 0:00:16]}  c4 {[%clk 0:00:02]} 38. bxc4 {[%clk 0:00:16]}  Bc5 {[%clk 0:00:03]} 39. Rc6 {[%clk 0:00:15]}  Bd4 {[%clk 0:00:03]} 40. Rxd4 {[%clk 0:00:12]} 1-0


[Site "https://www.chess.com"]

[Event "Titled Tuesday Blitz February 01 A 2022"]
[White "Arjun Kalyan"]
[Black "Caruana, Fabiano"]
[WhiteFideId "35018701"]
[BlackFideId "2020009"]
[WhiteElo "2321"]
[BlackElo "2744"]
[Result "0-1"]
[Round "05"]
[TimeControl "180+1"]
[Date "2022.02.01"]
[WhiteClock "0:00:05"]
[BlackClock "0:00:20"]

1. e4 {[%clk 0:03:00]}  c5 {[%clk 0:02:57]} 2. Nf3 {[%clk 0:03:00]}  d6 {[%clk 0:02:57]} 3. Bb5+ {[%clk 0:03:01]}  Bd7 {[%clk 0:02:56]} 4. Bxd7+ {[%clk 0:03:00]}  Qxd7 {[%clk 0:02:57]} 5. c4 {[%clk 0:03:00]}  e5 {[%clk 0:02:57]} 6. Nc3 {[%clk 0:02:59]}  Nc6 {[%clk 0:02:58]} 7. O-O {[%clk 0:02:57]}  Be7 {[%clk 0:02:58]} 8. a3 {[%clk 0:02:57]}  Bd8 {[%clk 0:02:58]} 9. b4 {[%clk 0:02:51]}  Nge7 {[%clk 0:02:57]} 10. Rb1 {[%clk 0:02:49]}  O-O {[%clk 0:02:55]} 11. d3 {[%clk 0:02:44]}  f5 {[%clk 0:02:53]} 12. Nd5 {[%clk 0:02:33]}  b6 {[%clk 0:02:45]} 13. b5 {[%clk 0:02:19]}  Nd4 {[%clk 0:02:20]} 14. Nxd4 {[%clk 0:02:18]}  cxd4 {[%clk 0:02:15]} 15. Nxe7+ {[%clk 0:01:42]}  Bxe7 {[%clk 0:02:16]} 16. exf5 {[%clk 0:01:38]}  Qxf5 {[%clk 0:02:16]} 17. Qe2 {[%clk 0:01:36]}  Rac8 {[%clk 0:02:15]} 18. a4 {[%clk 0:01:27]}  Rfd8 {[%clk 0:01:28]} 19. Ba3 {[%clk 0:01:24]}  Bf6 {[%clk 0:01:21]} 20. Rbc1 {[%clk 0:01:12]}  Bg5 {[%clk 0:01:18]} 21. Rc2 {[%clk 0:01:08]}  h6 {[%clk 0:01:18]} 22. Re1 {[%clk 0:01:00]}  Rd7 {[%clk 0:01:15]} 23. g3 {[%clk 0:00:48]}  Qg6 {[%clk 0:01:02]} 24. Qg4 {[%clk 0:00:45]}  Rcd8 {[%clk 0:00:45]} 25. Qe4 {[%clk 0:00:26]}  Qxe4 {[%clk 0:00:44]} 26. Rxe4 {[%clk 0:00:26]}  Rc8 {[%clk 0:00:43]} 27. Rce2 {[%clk 0:00:26]}  Bf6 {[%clk 0:00:42]} 28. f4 {[%clk 0:00:21]}  exf4 {[%clk 0:00:38]} 29. Rxf4 {[%clk 0:00:21]}  d5 {[%clk 0:00:36]} 30. cxd5 {[%clk 0:00:19]}  Rc3 {[%clk 0:00:36]} 31. Bb2 {[%clk 0:00:16]}  Rxd3 {[%clk 0:00:35]} 32. Rf5 {[%clk 0:00:16]}  Kf7 {[%clk 0:00:34]} 33. Ref2 {[%clk 0:00:15]}  Kg6 {[%clk 0:00:32]} 34. Kg2 {[%clk 0:00:12]}  h5 {[%clk 0:00:30]} 35. h4 {[%clk 0:00:12]}  Rb3 {[%clk 0:00:28]} 36. Bc1 {[%clk 0:00:06]}  d3 {[%clk 0:00:25]} 37. Be3 {[%clk 0:00:06]}  Rb4 {[%clk 0:00:23]} 38. R5f4 {[%clk 0:00:06]}  Rxf4 {[%clk 0:00:23]} 39. Rxf4 {[%clk 0:00:06]}  Rxd5 {[%clk 0:00:23]} 40. Bd2 {[%clk 0:00:06]}  Be7 {[%clk 0:00:18]} 41. Kf3 {[%clk 0:00:06]}  Bc5 {[%clk 0:00:18]} 42. Ke4 {[%clk 0:00:03]}  Rd4+ {[%clk 0:00:18]} 43. Ke5 {[%clk 0:00:03]}  Rxf4 {[%clk 0:00:17]} 44. Kxf4 {[%clk 0:00:04]}  Bd6+ {[%clk 0:00:18]} 45. Kf3 {[%clk 0:00:04]}  Kf5 {[%clk 0:00:18]} 46. Be1 {[%clk 0:00:04]}  Bc5 {[%clk 0:00:17]} 47. Bd2 {[%clk 0:00:04]}  Ke5 {[%clk 0:00:18]} 48. Bc3+ {[%clk 0:00:04]}  Kd5 {[%clk 0:00:18]} 49. Bxg7 {[%clk 0:00:04]}  Kc4 {[%clk 0:00:18]} 50. Bh6 {[%clk 0:00:03]}  Kb3 {[%clk 0:00:18]} 51. g4 {[%clk 0:00:03]}  hxg4+ {[%clk 0:00:17]} 52. Kxg4 {[%clk 0:00:04]}  Kc2 {[%clk 0:00:18]} 53. Kf5 {[%clk 0:00:03]}  d2 {[%clk 0:00:17]} 54. Bxd2 {[%clk 0:00:03]}  Kxd2 {[%clk 0:00:18]} 55. h5 {[%clk 0:00:04]}  Kc3 {[%clk 0:00:18]} 56. Ke4 {[%clk 0:00:04]}  Kc4 {[%clk 0:00:17]} 57. h6 {[%clk 0:00:05]}  Bd4 {[%clk 0:00:17]} 58. h7 {[%clk 0:00:05]}  Bh8 {[%clk 0:00:18]} 59. Kf5 {[%clk 0:00:03]}  Kb4 {[%clk 0:00:18]} 60. Ke6 {[%clk 0:00:03]}  Kxa4 {[%clk 0:00:18]} 61. Kd7 {[%clk 0:00:04]}  Kxb5 {[%clk 0:00:18]} 62. Kc7 {[%clk 0:00:05]}  a5 {[%clk 0:00:19]} 63. Kb7 {[%clk 0:00:05]}  a4 {[%clk 0:00:20]} 0-1


[Site "https://www.chess.com"]

[Event "Titled Tuesday Blitz February 01 A 2022"]
[White "Bacrot, Etienne"]
[Black "Sviridov, Valery"]
[WhiteFideId "605506"]
[BlackFideId "4120680"]
[WhiteElo "2673"]
[BlackElo "2454"]
[Result "1/2-1/2"]
[Round "05"]
[TimeControl "180+1"]
[Date "2022.02.01"]
[WhiteClock "0:00:06"]
[BlackClock "0:00:18"]

1. d4 {[%clk 0:03:00]}  g6 {[%clk 0:02:59]} 2. h4 {[%clk 0:03:00]}  Nf6 {[%clk 0:02:58]} 3. Nc3 {[%clk 0:02:59]}  d5 {[%clk 0:02:58]} 4. Bg5 {[%clk 0:02:59]}  Bg7 {[%clk 0:02:57]} 5. e3 {[%clk 0:03:00]}  c5 {[%clk 0:02:56]} 6. dxc5 {[%clk 0:02:59]}  Nc6 {[%clk 0:02:56]} 7. Nf3 {[%clk 0:02:58]}  h6 {[%clk 0:02:54]} 8. Bxf6 {[%clk 0:02:58]}  Bxf6 {[%clk 0:02:55]} 9. Bb5 {[%clk 0:02:57]}  Qa5 {[%clk 0:02:54]} 10. Nd4 {[%clk 0:02:53]}  a6 {[%clk 0:02:38]} 11. Bxc6+ {[%clk 0:02:01]}  bxc6 {[%clk 0:02:38]} 12. Nb3 {[%clk 0:01:20]}  Bxc3+ {[%clk 0:02:36]} 13. bxc3 {[%clk 0:01:21]}  Qxc3+ {[%clk 0:02:36]} 14. Qd2 {[%clk 0:01:21]}  Qf6 {[%clk 0:02:30]} 15. Qd4 {[%clk 0:01:07]}  e5 {[%clk 0:02:29]} 16. Qc3 {[%clk 0:01:06]}  O-O {[%clk 0:02:25]} 17. f4 {[%clk 0:00:59]}  Re8 {[%clk 0:02:03]} 18. O-O-O {[%clk 0:00:40]}  Kg7 {[%clk 0:01:31]} 19. h5 {[%clk 0:00:32]}  g5 {[%clk 0:01:25]} 20. Rdf1 {[%clk 0:00:22]}  d4 {[%clk 0:01:19]} 21. Qc4 {[%clk 0:00:11]}  Be6 {[%clk 0:01:07]} 22. fxe5 {[%clk 0:00:10]}  Bxc4 {[%clk 0:01:07]} 23. exf6+ {[%clk 0:00:10]}  Kg8 {[%clk 0:01:07]} 24. Nxd4 {[%clk 0:00:10]}  Bxf1 {[%clk 0:01:07]} 25. Rxf1 {[%clk 0:00:10]}  Re5 {[%clk 0:00:54]} 26. Nxc6 {[%clk 0:00:07]}  Rxc5 {[%clk 0:00:53]} 27. Ne7+ {[%clk 0:00:08]}  Kh7 {[%clk 0:00:54]} 28. e4 {[%clk 0:00:07]}  Re5 {[%clk 0:00:49]} 29. Re1 {[%clk 0:00:06]}  Re6 {[%clk 0:00:49]} 30. e5 {[%clk 0:00:06]}  Rb8 {[%clk 0:00:48]} 31. c4 {[%clk 0:00:04]}  Rb4 {[%clk 0:00:47]} 32. Re4 {[%clk 0:00:03]}  Ra4 {[%clk 0:00:35]} 33. Kb2 {[%clk 0:00:03]}  Rb6+ {[%clk 0:00:35]} 34. Kc3 {[%clk 0:00:04]}  Rxa2 {[%clk 0:00:33]} 35. c5 {[%clk 0:00:04]}  Rb1 {[%clk 0:00:32]} 36. c6 {[%clk 0:00:05]}  Rc1+ {[%clk 0:00:32]} 37. Kb4 {[%clk 0:00:05]}  Rb2+ {[%clk 0:00:31]} 38. Ka3 {[%clk 0:00:05]}  Rb5 {[%clk 0:00:27]} 39. Re2 {[%clk 0:00:04]}  Ra1+ {[%clk 0:00:26]} 40. Ra2 {[%clk 0:00:04]}  Re1 {[%clk 0:00:26]} 41. c7 {[%clk 0:00:03]}  Re3+ {[%clk 0:00:20]} 42. Ka4 {[%clk 0:00:03]}  Re4+ {[%clk 0:00:21]} 43. Ka3 {[%clk 0:00:04]}  Re3+ {[%clk 0:00:17]} 44. Ka4 {[%clk 0:00:04]}  Reb3 {[%clk 0:00:15]} 45. c8=Q {[%clk 0:00:04]}  R3b4+ {[%clk 0:00:16]} 46. Ka3 {[%clk 0:00:04]}  Rb3+ {[%clk 0:00:16]} 47. Ka4 {[%clk 0:00:05]}  R3b4+ {[%clk 0:00:17]} 48. Ka3 {[%clk 0:00:05]}  Rb3+ {[%clk 0:00:18]} 49. Ka4 {[%clk 0:00:06]} 1/2-1/2


[Site "https://www.chess.com"]

[Event "Titled Tuesday Blitz February 01 A 2022"]
[White "Barrientos, Sergio E"]
[Black "Sadhwani, Raunak"]
[WhiteFideId "4401824"]
[BlackFideId "35093487"]
[WhiteElo "2441"]
[BlackElo "2616"]
[Result "0-1"]
[Round "05"]
[TimeControl "180+1"]
[Date "2022.02.01"]
[WhiteClock "0:00:18"]
[BlackClock "0:00:27"]

1. d4 {[%clk 0:02:56]}  Nf6 {[%clk 0:03:00]} 2. Nf3 {[%clk 0:02:54]}  g6 {[%clk 0:03:00]} 3. c4 {[%clk 0:02:49]}  Bg7 {[%clk 0:03:00]} 4. Nc3 {[%clk 0:02:50]}  O-O {[%clk 0:03:01]} 5. e4 {[%clk 0:02:49]}  d6 {[%clk 0:03:01]} 6. h3 {[%clk 0:02:49]}  e5 {[%clk 0:02:59]} 7. d5 {[%clk 0:02:49]}  Nh5 {[%clk 0:02:59]} 8. g3 {[%clk 0:02:48]}  a5 {[%clk 0:02:54]} 9. Be2 {[%clk 0:02:46]}  Na6 {[%clk 0:02:54]} 10. Be3 {[%clk 0:02:45]}  Qe8 {[%clk 0:02:43]} 11. Nd2 {[%clk 0:02:40]}  Bd7 {[%clk 0:02:34]} 12. Bxh5 {[%clk 0:02:35]}  gxh5 {[%clk 0:02:35]} 13. Qxh5 {[%clk 0:02:34]}  Nb4 {[%clk 0:02:35]} 14. O-O-O {[%clk 0:02:24]}  Nd3+ {[%clk 0:02:13]} 15. Kc2 {[%clk 0:02:20]}  Nc5 {[%clk 0:02:08]} 16. g4 {[%clk 0:02:16]}  Ba4+ {[%clk 0:01:53]} 17. b3 {[%clk 0:02:12]}  Bd7 {[%clk 0:01:53]} 18. a4 {[%clk 0:02:05]}  Nxa4 {[%clk 0:01:45]} 19. bxa4 {[%clk 0:01:57]}  Bxa4+ {[%clk 0:01:45]} 20. Nxa4 {[%clk 0:01:56]}  Qxa4+ {[%clk 0:01:46]} 21. Kd3 {[%clk 0:01:57]}  b5 {[%clk 0:01:44]} 22. Rc1 {[%clk 0:01:39]}  b4 {[%clk 0:01:44]} 23. Ra1 {[%clk 0:01:38]}  Qd7 {[%clk 0:01:39]} 24. Rhb1 {[%clk 0:01:37]}  Rfb8 {[%clk 0:01:37]} 25. Qf5 {[%clk 0:01:36]}  Qe7 {[%clk 0:01:37]} 26. Ra4 {[%clk 0:01:19]}  Qe8 {[%clk 0:01:37]} 27. Rba1 {[%clk 0:01:18]}  b3 {[%clk 0:01:37]} 28. Nb1 {[%clk 0:01:09]}  b2 {[%clk 0:01:01]} 29. R1a3 {[%clk 0:01:08]}  c6 {[%clk 0:00:52]} 30. Bd2 {[%clk 0:01:01]}  cxd5 {[%clk 0:00:51]} 31. exd5 {[%clk 0:01:01]}  Rb3+ {[%clk 0:00:43]} 32. Bc3 {[%clk 0:00:46]}  e4+ {[%clk 0:00:37]} 33. Kc2 {[%clk 0:00:40]}  Rxc3+ {[%clk 0:00:35]} 34. Nxc3 {[%clk 0:00:36]}  Bxc3 {[%clk 0:00:35]} 35. c5 {[%clk 0:00:30]}  Qb5 {[%clk 0:00:28]} 36. Rb3 {[%clk 0:00:18]}  Qd3# {[%clk 0:00:27]} 0-1


[Site "https://www.chess.com"]